fUST/lending_fUST_20240327
["ID","MTS","AMOUNT","RATE_DAILY","PERIOD"]
[320647921,1711486243338,-648.64679788,0.000189,2]
[320647924,1711486243348,-3799.8104598,0.00018983,2]
[320647926,1711486243360,-335.66717371,0.00018983,2]
[320647928,1711486243369,-21.17282622,0.00019,2]
[320647932,1711486243397,-133.98698994,0.00019,2]
[320647934,1711486243406,-256.27607163,0.00019076,2]
[320647936,1711486243416,-330.45828127,0.00019076,2]
[320647938,1711486243425,-204.59707551,0.00019076,2]
[320647940,1711486243435,-67.24658165,0.00019076,2]
[320647942,1711486243446,-146.87905706,0.00019076,2]
[320647944,1711486243457,-969.86840439,0.00019076,2]
[320647946,1711486243473,-369.77143074,0.00019076,2]
[320647948,1711486243482,-192.69613778,0.00019076,2]
[320647950,1711486243492,-406.20504989,0.00019077,2]
[320647952,1711486243500,-25345.17,0.00019078,2]
[320647955,1711486243515,-600.0,0.0001917,2]
[320647958,1711486243524,-1909.80998784,0.00019175,2]
[320647961,1711486243537,-500.0,0.00019175,2]
[320647963,1711486243546,-229.01112361,0.00019175,2]
[320647965,1711486243555,-872.37246865,0.00019177,2]
[320647967,1711486243564,-155.14739002,0.00019177,2]
[320647969,1711486243573,-29752.58174302,0.00019177,2]
[320647971,1711486243582,-500.0,0.00019178,2]
[320647973,1711486243591,-500.0,0.00019178,2]
[320647975,1711486243600,-500.0,0.00019178,2]
[320647977,1711486243611,-500.0,0.00019178,2]
[320647979,1711486243621,-500.0,0.00019178,2]
[320647981,1711486243631,-500.0,0.00019178,2]
[320647983,1711486243641,-500.0,0.00019178,2]
[320647985,1711486243650,-500.0,0.00019178,2]
[320647987,1711486243659,-500.0,0.00019178,2]
[320647989,1711486243668,-500.0,0.00019178,2]
[320647991,1711486243677,-500.0,0.00019178,2]
[320647993,1711486243686,-500.0,0.00019178,2]
[320647995,1711486243695,-732.81,0.00019178,2]
[320647997,1711486243703,-500.0,0.00019178,2]
[320647999,1711486243713,-500.0,0.00019178,2]
[320648001,1711486243722,-500.0,0.00019178,2]
[320648003,1711486243732,-500.0,0.00019178,2]
[320648005,1711486243741,-500.0,0.00019178,2]
[320648007,1711486243750,-1296.72,0.00019178,2]
[320648009,1711486243761,-771.37,0.00019178,2]
[320648011,1711486243770,-702.82,0.00019178,2]
[320648013,1711486243779,-832.13,0.00019178,2]
[320648015,1711486243789,-674.85,0.00019178,2]
[320648017,1711486243798,-500.0,0.00019178,2]
[320648019,1711486243807,-500.0,0.00019178,2]
[320648021,1711486243817,-500.0,0.00019178,2]
[320648023,1711486243826,-1065.45,0.00019178,2]
[320648025,1711486243835,-500.0,0.00019178,2]
[320648027,1711486243845,-542.39,0.00019178,2]
[320648029,1711486243854,-500.0,0.00019178,2]
[320648031,1711486243864,-500.0,0.00019178,2]
[320648033,1711486243873,-500.0,0.00019178,2]
[320648035,1711486243882,-500.0,0.00019178,2]
[320648037,1711486243892,-641.66,0.00019178,2]
[320648039,1711486243901,-784.81,0.00019178,2]
[320648041,1711486243910,-500.0,0.00019178,2]
[320648043,1711486243920,-500.0,0.00019178,2]
[320648045,1711486243929,-500.0,0.00019178,2]
[320648047,1711486243938,-648.52,0.00019178,2]
[320648049,1711486243947,-500.0,0.00019178,2]
[320648051,1711486243956,-500.0,0.00019178,2]
[320648053,1711486243966,-500.0,0.00019178,2]
[320648055,1711486243975,-500.0,0.00019178,2]
[320648057,1711486243984,-500.0,0.00019178,2]
[320648059,1711486243993,-500.0,0.00019178,2]
[320648062,1711486244004,-500.0,0.00019178,2]
[320648063,1711486244013,-3062.92,0.00019178,2]
[320648066,1711486244022,-500.0,0.00019178,2]
[320648068,1711486244032,-500.0,0.00019178,2]
[320648070,1711486244041,-500.0,0.00019178,2]
[320648071,1711486244050,-461.43468464,0.00019178,2]
[320648074,1711486244060,-500.0,0.00019178,2]
[320648076,1711486244072,-609.48,0.00019178,2]
[320648077,1711486244081,-500.0,0.00019178,2]
[320648080,1711486244091,-500.0,0.00019178,2]
[320648082,1711486244100,-500.0,0.00019178,2]
[320648083,1711486244109,-500.0,0.00019178,2]
[320648086,1711486244118,-500.0,0.00019178,2]
[320648087,1711486244127,-500.0,0.00019178,2]
[320648089,1711486244136,-530.66,0.00019178,2]
[320648092,1711486244145,-605.36,0.00019178,2]
[320648094,1711486244154,-500.0,0.00019178,2]
[320648096,1711486244163,-500.0,0.00019178,2]
[320648097,1711486244173,-500.0,0.00019178,2]
[320648099,1711486244182,-500.0,0.00019178,2]
[320648102,1711486244191,-500.0,0.00019178,2]
[320648103,1711486244200,-2688.47,0.00019178,2]
[320648105,1711486244209,-500.0,0.00019178,2]
[320648107,1711486244219,-500.0,0.00019178,2]
[320648110,1711486244229,-1911.02,0.00019178,2]
[320648112,1711486244238,-500.0,0.00019178,2]
[320648114,1711486244248,-559.56,0.00019178,2]
[320648116,1711486244257,-500.0,0.00019178,2]
[320648117,1711486244266,-500.0,0.00019178,2]
[320648119,1711486244275,-500.0,0.00019178,2]
[320648122,1711486244284,-500.0,0.00019178,2]
[320648123,1711486244293,-810.78,0.00019178,2]
[320648126,1711486244303,-500.0,0.00019178,2]
[320648128,1711486244312,-500.0,0.00019178,2]
[320648129,1711486244321,-380.90518397,0.00019178,2]
[320648131,1711486244330,-500.0,0.00019178,2]
[320648134,1711486244339,-500.0,0.00019178,2]
[320648136,1711486244349,-500.0,0.00019178,2]
[320648138,1711486244358,-500.0,0.00019178,2]
[320648140,1711486244368,-433.81927037,0.00019178,2]
[320648142,1711486244377,-500.0,0.00019178,2]
[320648144,1711486244386,-500.0,0.00019178,2]
[320648146,1711486244395,-690.26,0.00019178,2]
[320648148,1711486244404,-500.0,0.00019178,2]
[320648150,1711486244412,-500.0,0.00019178,2]
[320648152,1711486244421,-1102.29,0.00019178,2]
[320648154,1711486244430,-543.18920094,0.00019178,2]
[320648156,1711486244439,-500.0,0.00019178,2]
[320648158,1711486244449,-500.0,0.00019178,2]
[320648160,1711486244458,-500.0,0.00019178,2]
[320648162,1711486244468,-614.63,0.00019178,2]
[320648164,1711486244477,-500.0,0.00019178,2]
[320648166,1711486244488,-1027.66,0.00019178,2]
[320648168,1711486244496,-764.73,0.00019178,2]
[320648170,1711486244507,-539.24,0.00019178,2]
[320648171,1711486244516,-500.0,0.00019178,2]
[320648174,1711486244525,-1861.91,0.00019178,2]
[320648176,1711486244536,-500.0,0.00019178,2]
[320648178,1711486244548,-251.47236736,0.00019178,2]
[320648180,1711486244556,-1219.12844738,0.00019178,2]
[320648395,1711486246649,-675.98404078,0.00019178,2]
[320650984,1711486377318,718.9449947,0.00018152,2]
[320651000,1711486437416,500.0,0.00018152,2]
[320651007,1711486449421,500.0,0.00018152,2]
[320651010,1711486471417,500.0,0.00018152,2]
[320651017,1711486487410,500.0,0.00018152,2]
[320651018,1711486509413,500.0,0.00018152,2]
[320651019,1711486529440,500.0,0.00018152,2]
[320651020,1711486545414,500.0,0.00018152,2]
[320651021,1711486561211,162.096104,0.00018114,2]
[320651022,1711486561404,500.0,0.00018152,2]
[320651024,1711486581425,500.0,0.00018152,2]
[320651026,1711486597539,500.0,0.00018152,2]
[320651027,1711486619428,500.0,0.00018152,2]
[320651028,1711486643424,500.0,0.00018152,2]
[320651029,1711486663415,500.0,0.00018152,2]
[320651030,1711486667204,4178.3300214,0.00018114,2]
[320651031,1711486686054,500.0,0.00018152,2]
[320651032,1711486709424,500.0,0.00018152,2]
[320651035,1711487032816,19069.41550969,0.00018152,2]
[320651036,1711487038900,237.9325484,0.00018297,2]
[320651038,1711487049291,15129.90419748,0.00018152,2]
[320651040,1711487236736,467.0233524,0.00018114,2]
[320651042,1711487306861,5237.6453839,0.00018114,2]
[320651084,1711487432281,-281.16717003,0.00018798,2]
[320651085,1711487432291,-309.36967729,0.00018799,2]
[320651086,1711487432303,-3226.99230892,0.00018899,2]
[320651087,1711487432312,-772.02130993,0.000189,2]
[320651088,1711487432321,-920.39722864,0.00019078,2]
[320651089,1711487432330,-155.09585176,0.00019175,2]
[320651091,1711487432339,-326.05635795,0.00019175,2]
[320651092,1711487432348,-3443.12849161,0.00019175,2]
[320651093,1711487432357,-1610.35282495,0.00019175,2]
[320651095,1711487432367,-3508.32344105,0.00019175,2]
[320651098,1711487432376,-170.63807538,0.00019175,2]
[320651101,1711487432386,-309.87297944,0.00019175,2]
[320651104,1711487432395,-471.19723766,0.00019175,2]
[320651107,1711487432404,-237.77665041,0.00019176,2]
[320651110,1711487432414,-3154.66071707,0.00019176,2]
[320651113,1711487432424,-1612.32359419,0.00019176,2]
[320651116,1711487432437,-344.91799141,0.00019176,2]
[320651119,1711487432446,-398.99565253,0.00019177,2]
[320651122,1711487432455,-22508.76465558,0.00019177,2]
[320651125,1711487432465,-500.0,0.00019178,2]
[320651128,1711487432474,-500.0,0.00019178,2]
[320651131,1711487432483,-500.0,0.00019178,2]
[320651134,1711487432493,-500.0,0.00019178,2]
[320651138,1711487432503,-621.49,0.00019178,2]
[320651142,1711487432512,-500.0,0.00019178,2]
[320651143,1711487432522,-500.0,0.00019178,2]
[320651144,1711487432534,-501.64631024,0.00019178,2]
[320651145,1711487432544,-500.0,0.00019178,2]
[320651146,1711487432553,-500.0,0.00019178,2]
[320651147,1711487432562,-500.0,0.00019178,2]
[320651148,1711487432571,-508.55,0.00019178,2]
[320651149,1711487432580,-2576.45,0.00019178,2]
[320651150,1711487432590,-500.0,0.00019178,2]
[320651151,1711487432599,-500.0,0.00019178,2]
[320651152,1711487432609,-500.0,0.00019178,2]
[320651153,1711487432618,-580.14,0.00019178,2]
[320651154,1711487432628,-500.0,0.00019178,2]
[320651155,1711487432638,-500.0,0.00019178,2]
[320651156,1711487432647,-500.0,0.00019178,2]
[320651157,1711487432811,-500.0,0.00019178,2]
[320651158,1711487432821,-500.0,0.00019178,2]
[320651159,1711487432831,-1831.39,0.00019178,2]
[320651160,1711487432841,-500.0,0.00019178,2]
[320651161,1711487432850,-500.0,0.00019178,2]
[320651162,1711487432860,-500.0,0.00019178,2]
[320651163,1711487432871,-500.0,0.00019178,2]
[320651164,1711487432883,-500.0,0.00019178,2]
[320651165,1711487432892,-500.0,0.00019178,2]
[320651166,1711487432901,-500.0,0.00019178,2]
[320651167,1711487432911,-777.0,0.00019178,2]
[320651168,1711487432922,-500.0,0.00019178,2]
[320651169,1711487432931,-1242.69,0.00019178,2]
[320651170,1711487432940,-500.0,0.00019178,2]
[320651171,1711487432950,-500.0,0.00019178,2]
[320651172,1711487432960,-739.23,0.00019178,2]
[320651173,1711487432969,-500.0,0.00019178,2]
[320651174,1711487432980,-797.46,0.00019178,2]
[320651175,1711487432990,-500.0,0.00019178,2]
[320651176,1711487432999,-500.0,0.00019178,2]
[320651177,1711487433009,-732.86,0.00019178,2]
[320651178,1711487433019,-519.79,0.00019178,2]
[320651179,1711487433028,-500.0,0.00019178,2]
[320651180,1711487433040,-500.0,0.00019178,2]
[320651181,1711487433049,-500.0,0.00019178,2]
[320651182,1711487433059,-500.0,0.00019178,2]
[320651183,1711487433068,-500.0,0.00019178,2]
[320651184,1711487433078,-500.0,0.00019178,2]
[320651185,1711487433087,-500.0,0.00019178,2]
[320651186,1711487433097,-500.0,0.00019178,2]
[320651187,1711487433107,-1210.33,0.00019178,2]
[320651188,1711487433116,-500.0,0.00019178,2]
[320651189,1711487433126,-500.0,0.00019178,2]
[320651190,1711487433136,-500.0,0.00019178,2]
[320651191,1711487433145,-500.0,0.00019178,2]
[320651192,1711487433155,-500.0,0.00019178,2]
[320651193,1711487433165,-704.35,0.00019178,2]
[320651194,1711487433174,-500.0,0.00019178,2]
[320651195,1711487433183,-500.0,0.00019178,2]
[320651196,1711487433193,-500.0,0.00019178,2]
[320651197,1711487433202,-500.0,0.00019178,2]
[320651198,1711487433211,-500.0,0.00019178,2]
[320651199,1711487433220,-500.0,0.00019178,2]
[320651200,1711487433230,-195.48838065,0.00019178,2]
[320651201,1711487433239,-500.0,0.00019178,2]
[320651202,1711487433249,-500.0,0.00019178,2]
[320651203,1711487433258,-469.8942571,0.00019178,2]
[320651204,1711487433267,-500.0,0.00019178,2]
[320651205,1711487433277,-592.04,0.00019178,2]
[320651206,1711487433287,-478.04735009,0.00019178,2]
[320651207,1711487433296,-500.0,0.00019178,2]
[320651208,1711487433306,-500.0,0.00019178,2]
[320651209,1711487433315,-418.32908891,0.00019178,2]
[320651247,1711487438470,-81.67091109,0.00019178,2]
[320651248,1711487438480,-500.0,0.00019178,2]
[320651249,1711487438490,-500.0,0.00019178,2]
[320651250,1711487438501,-2935.3,0.00019178,2]
[320651252,1711487438510,-500.0,0.00019178,2]
[320651254,1711487438520,-203.73201299,0.00019178,2]
[320651257,1711487438532,-296.26798701,0.00019178,2]
[320651259,1711487438543,-536.24,0.00019178,2]
[320651261,1711487438553,-172.875553,0.00019178,2]
[320651724,1711487443422,-160.20097611,0.00019177,2]
[320651726,1711487443432,-327.124447,0.00019178,2]
[320651728,1711487443441,-500.0,0.00019178,2]
[320651730,1711487443451,-500.0,0.00019178,2]
[320651732,1711487443460,-500.0,0.00019178,2]
[320651734,1711487443469,-500.0,0.00019178,2]
[320651736,1711487443478,-500.0,0.00019178,2]
[320651738,1711487443487,-500.0,0.00019178,2]
[320651739,1711487443497,-35.13926528,0.00019178,2]
[320651742,1711487443510,-464.86073472,0.00019178,2]
[320651744,1711487443519,-500.0,0.00019178,2]
[320651746,1711487443529,-655.46,0.00019178,2]
[320651748,1711487443538,-584.09,0.00019178,2]
[320651750,1711487443551,-570.87995414,0.00019178,2]
[320651752,1711487443560,-500.0,0.00019178,2]
[320651754,1711487443570,-500.0,0.00019178,2]
[320651756,1711487443580,-500.0,0.00019178,2]
[320651757,1711487443589,-868.15,0.00019178,2]
[320651759,1711487443599,-500.0,0.00019178,2]
[320651761,1711487443609,-500.0,0.00019178,2]
[320651763,1711487443618,-500.0,0.00019178,2]
[320651765,1711487443627,-201.73818595,0.00019178,2]
[320651767,1711487443636,-478.40273534,0.00019178,2]
[320651769,1711487443645,-509.52,0.00019178,2]
[320651771,1711487443655,-500.0,0.00019178,2]
[320651773,1711487443664,-500.0,0.00019178,2]
[320651775,1711487443673,-661.5,0.00019178,2]
[320651777,1711487443682,-500.0,0.00019178,2]
[320651779,1711487443691,-542.12,0.00019178,2]
[320651781,1711487443701,-500.0,0.00019178,2]
[320651783,1711487443710,-500.0,0.00019178,2]
[320651785,1711487443720,-589.02,0.00019178,2]
[320651787,1711487443729,-500.0,0.00019178,2]
[320651789,1711487443738,-500.0,0.00019178,2]
[320651791,1711487443747,-516.82,0.00019178,2]
[320651792,1711487443757,-500.0,0.00019178,2]
[320651794,1711487443767,-500.0,0.00019178,2]
[320651796,1711487443776,-500.0,0.00019178,2]
[320651798,1711487443785,-456.68061786,0.00019178,2]
[320651801,1711487443799,-516.77,0.00019178,2]
[320651802,1711487443808,-636.57,0.00019178,2]
[320651804,1711487443818,-500.0,0.00019178,2]
[320651806,1711487443827,-255.3821098,0.00019178,2]
[320652009,1711487446487,-785.18093439,0.00019177,2]
[320652011,1711487446496,-244.6178902,0.00019178,2]
[320652013,1711487446506,-500.0,0.00019178,2]
[320652015,1711487446515,-296.54671828,0.00019178,2]
[320652016,1711487446525,-500.0,0.00019178,2]
[320652018,1711487446534,-500.0,0.00019178,2]
[320652020,1711487446543,-500.0,0.00019178,2]
[320652023,1711487446553,-500.0,0.00019178,2]
[320652024,1711487446562,-500.0,0.00019178,2]
[320652026,1711487446571,-152.3317469,0.00019178,2]
[320652028,1711487446580,-500.0,0.00019178,2]
[320652030,1711487446588,-500.0,0.00019178,2]
[320652031,1711487446597,-500.0,0.00019178,2]
[320652033,1711487446606,-544.26,0.00019178,2]
[320652035,1711487446616,-500.0,0.00019178,2]
[320652038,1711487446625,-500.0,0.00019178,2]
[320652040,1711487446634,-674.82,0.00019178,2]
[320652043,1711487446643,-500.0,0.00019178,2]
[320652046,1711487446652,-228.14350573,0.00019178,2]
[320652049,1711487446661,-500.0,0.00019178,2]
[320652050,1711487446670,-500.0,0.00019178,2]
[320652052,1711487446679,-500.0,0.00019178,2]
[320652054,1711487446688,-500.0,0.00019178,2]
[320652056,1711487446696,-776.2,0.00019178,2]
[320652058,1711487446706,-946.9,0.00019178,2]
[320652059,1711487446715,-1056.36,0.00019178,2]
[320652061,1711487446724,-811.86,0.00019178,2]
[320652063,1711487446732,-500.0,0.00019178,2]
[320652065,1711487446741,-628.06565498,0.00019178,2]
[320652066,1711487446750,-500.0,0.00019178,2]
[320652068,1711487446760,-529.54,0.00019178,2]
[320652070,1711487446768,-692.18,0.00019178,2]
[320652072,1711487446778,-500.0,0.00019178,2]
[320652073,1711487446787,-984.84,0.00019178,2]
[320652075,1711487446796,-1230.11,0.00019178,2]
[320652077,1711487446805,-500.0,0.00019178,2]
[320652079,1711487446814,-500.0,0.00019178,2]
[320652080,1711487446823,-500.0,0.00019178,2]
[320652082,1711487446832,-500.0,0.00019178,2]
[320652084,1711487446841,-1784.33,0.00019178,2]
[320652086,1711487446851,-5753.98,0.00019178,2]
[320652088,1711487446860,-702.28,0.00019178,2]
[320652089,1711487446869,-500.0,0.00019178,2]
[320652091,1711487446878,-500.0,0.00019178,2]
[320652093,1711487446888,-552.34,0.00019178,2]
[320652094,1711487446897,-6277.33,0.00019178,2]
[320652096,1711487446906,-500.0,0.00019178,2]
[320652098,1711487446916,-3177.6,0.00019178,2]
[320652099,1711487446925,-500.0,0.00019178,2]
[320652101,1711487446935,-551.69,0.00019178,2]
[320652103,1711487446943,-2601.26,0.00019178,2]
[320652104,1711487446955,-547.75,0.00019178,2]
[320652106,1711487446964,-500.0,0.00019178,2]
[320652108,1711487446974,-500.0,0.00019178,2]
[320652110,1711487446985,-500.0,0.00019178,2]
[320652111,1711487446994,-500.0,0.00019178,2]
[320652113,1711487447003,-2504.47,0.00019178,2]
[320652115,1711487447012,-3000.65,0.00019178,2]
[320652116,1711487447021,-500.0,0.00019178,2]
[320652118,1711487447030,-500.0,0.00019178,2]
[320652120,1711487447039,-500.0,0.00019178,2]
[320652122,1711487447048,-438.37165995,0.00019178,2]
[320652409,1711487450224,11469.49860737,0.00018114,2]
[320657833,1711487526430,207.063744,0.00018185,2]
[320657835,1711488117102,229.01112361,0.00018185,2]
[320657836,1711488117460,1917.30203085,0.00018185,2]
[320657837,1711488131993,500.0,0.00018185,2]
[320657838,1711488253998,207.063744,0.00018052,2]
[320657908,1711488632372,-3510.35507536,0.00018793,2]
[320657910,1711488632382,-281.16717003,0.00018793,2]
[320657912,1711488632392,-3226.99230892,0.00018794,2]
[320657914,1711488632402,-2000.0,0.00018816,2]
[320657916,1711488632411,-215.60671262,0.000189,2]
[320657918,1711488632421,-654.35377202,0.000189,2]
[320657920,1711488632431,-161.23708818,0.0001899,2]
[320657922,1711488632440,-185.28887715,0.00019077,2]
[320657924,1711488632449,-185.28887715,0.00019077,2]
[320657926,1711488632458,-185.28887715,0.00019078,2]
[320657928,1711488632467,-185.28887715,0.00019078,2]
[320657930,1711488632476,-1967.61186454,0.00019078,2]
[320657932,1711488632485,-185.28887715,0.00019078,2]
[320657934,1711488632495,-10874.77419984,0.00019078,2]
[320657936,1711488632505,-444.67624885,0.0001909,2]
[320657938,1711488632514,-10000.0,0.000191,2]
[320657940,1711488632524,-225.0111954,0.00019174,2]
[320657942,1711488632533,-155.14894299,0.00019175,2]
[320657944,1711488632542,-1610.35282495,0.00019176,2]
[320657946,1711488632552,-405.85870882,0.00019176,2]
[320657948,1711488632561,-197.39467882,0.00019176,2]
[320657950,1711488632570,-1889.35512473,0.00019176,2]
[320657952,1711488632581,-192.69613778,0.00019176,2]
[320657953,1711488632590,-406.20504989,0.00019176,2]
[320657955,1711488632599,-972.93594167,0.00019176,2]
[320657957,1711488632609,-969.86840439,0.00019176,2]
[320657959,1711488632619,-155.14739002,0.00019176,2]
[320657961,1711488632628,-369.77143074,0.00019176,2]
[320657963,1711488632637,-29752.58174302,0.00019176,2]
[320657965,1711488632647,-240.52367935,0.00019177,2]
[320658529,1711488638463,-262.3827165,0.00019177,2]
[320659115,1711488643550,-908.26232402,0.00019177,2]
[320659129,1711488643670,-1193.66432911,0.00019177,2]
[320659131,1711488643680,-192.89435476,0.00019177,2]
[320659133,1711488643690,-437.97094733,0.00019178,2]
[320659135,1711488643699,-200.86675974,0.00019178,2]
[320659137,1711488643709,-500.0,0.00019178,2]
[320659139,1711488643718,-500.0,0.00019178,2]
[320659141,1711488643727,-500.0,0.00019178,2]
[320659143,1711488643737,-500.0,0.00019178,2]
[320659145,1711488643747,-567.37,0.00019178,2]
[320659147,1711488643757,-500.0,0.00019178,2]
[320659149,1711488643767,-500.0,0.00019178,2]
[320659151,1711488643776,-500.0,0.00019178,2]
[320659153,1711488643785,-500.0,0.00019178,2]
[320659155,1711488643795,-500.0,0.00019178,2]
[320659157,1711488643804,-225.90663256,0.00019178,2]
[320659159,1711488643813,-500.0,0.00019178,2]
[320659161,1711488643822,-500.0,0.00019178,2]
[320659163,1711488643836,-500.0,0.00019178,2]
[320659165,1711488643845,-500.0,0.00019178,2]
[320659168,1711488643854,-831.97,0.00019178,2]
[320659169,1711488643864,-500.0,0.00019178,2]
[320659172,1711488643873,-500.0,0.00019178,2]
[320659173,1711488643883,-500.0,0.00019178,2]
[320659175,1711488643893,-500.0,0.00019178,2]
[320659177,1711488643902,-500.0,0.00019178,2]
[320659179,1711488643911,-500.0,0.00019178,2]
[320659181,1711488643920,-500.0,0.00019178,2]
[320659183,1711488643929,-500.0,0.00019178,2]
[320659185,1711488643938,-500.0,0.00019178,2]
[320659187,1711488643947,-628.15,0.00019178,2]
[320659190,1711488643958,-484.0,0.00019178,2]
[320659191,1711488643967,-519.53,0.00019178,2]
[320659193,1711488643976,-500.0,0.00019178,2]
[320659195,1711488643985,-500.0,0.00019178,2]
[320659198,1711488643995,-500.0,0.00019178,2]
[320659200,1711488644004,-500.0,0.00019178,2]
[320659202,1711488644013,-500.0,0.00019178,2]
[320659204,1711488644022,-610.04,0.00019178,2]
[320659206,1711488644031,-663.34,0.00019178,2]
[320659207,1711488644041,-907.44,0.00019178,2]
[320659209,1711488644049,-500.0,0.00019178,2]
[320659211,1711488644059,-500.0,0.00019178,2]
[320659213,1711488644068,-500.0,0.00019178,2]
[320659215,1711488644076,-507.47,0.00019178,2]
[320659217,1711488644085,-500.0,0.00019178,2]
[320659219,1711488644094,-673.02,0.00019178,2]
[320659221,1711488644103,-500.0,0.00019178,2]
[320659223,1711488644111,-2812.99,0.00019178,2]
[320659225,1711488644121,-500.0,0.00019178,2]
[320659227,1711488644130,-500.0,0.00019178,2]
[320659229,1711488644138,-500.0,0.00019178,2]
[320659231,1711488644147,-500.0,0.00019178,2]
[320659233,1711488644156,-500.0,0.00019178,2]
[320659235,1711488644165,-500.0,0.00019178,2]
[320659237,1711488644174,-264.23010512,0.00019178,2]
[320659239,1711488644183,-500.0,0.00019178,2]
[320659241,1711488644192,-559.75,0.00019178,2]
[320659243,1711488644201,-500.0,0.00019178,2]
[320659245,1711488644212,-500.0,0.00019178,2]
[320659247,1711488644225,-500.0,0.00019178,2]
[320659249,1711488644234,-513.9,0.00019178,2]
[320659251,1711488644244,-518.17870601,0.00019178,2]
[320659253,1711488644253,-500.0,0.00019178,2]
[320659255,1711488644262,-500.0,0.00019178,2]
[320659257,1711488644272,-500.0,0.00019178,2]
[320659259,1711488644281,-500.0,0.00019178,2]
[320659261,1711488644291,-500.0,0.00019178,2]
[320659263,1711488644300,-500.0,0.00019178,2]
[320659265,1711488644310,-590.09,0.00019178,2]
[320659267,1711488644320,-674.85,0.00019178,2]
[320659269,1711488644329,-500.0,0.00019178,2]
[320659271,1711488644340,-500.0,0.00019178,2]
[320659273,1711488644350,-500.0,0.00019178,2]
[320659276,1711488644359,-662.7,0.00019178,2]
[320659277,1711488644369,-702.82,0.00019178,2]
[320659280,1711488644379,-500.0,0.00019178,2]
[320659281,1711488644388,-500.0,0.00019178,2]
[320659283,1711488644397,-500.0,0.00019178,2]
[320659285,1711488644406,-500.0,0.00019178,2]
[320659287,1711488644415,-1065.45,0.00019178,2]
[320659289,1711488644425,-500.0,0.00019178,2]
[320659291,1711488644434,-500.0,0.00019178,2]
[320659293,1711488644443,-500.0,0.00019178,2]
[320659295,1711488644452,-500.0,0.00019178,2]
[320659297,1711488644462,-552.22,0.00019178,2]
[320659299,1711488644472,-500.0,0.00019178,2]
[320659301,1711488644481,-500.0,0.00019178,2]
[320659303,1711488644490,-500.0,0.00019178,2]
[320659306,1711488644500,-552.13,0.00019178,2]
[320659307,1711488644509,-784.81,0.00019178,2]
[320659310,1711488644519,-500.0,0.00019178,2]
[320659312,1711488644529,-606.54,0.00019178,2]
[320659314,1711488644538,-500.0,0.00019178,2]
[320659316,1711488644547,-1058.27,0.00019178,2]
[320659318,1711488644556,-641.66,0.00019178,2]
[320659320,1711488644565,-500.0,0.00019178,2]
[320659322,1711488644574,-500.0,0.00019178,2]
[320659324,1711488644583,-500.0,0.00019178,2]
[320659326,1711488644593,-622.62,0.00019178,2]
[320659327,1711488644603,-500.0,0.00019178,2]
[320659330,1711488644612,-986.62,0.00019178,2]
[320659331,1711488644621,-500.0,0.00019178,2]
[320659334,1711488644630,-500.0,0.00019178,2]
[320659336,1711488644639,-778.03,0.00019178,2]
[320659338,1711488644649,-500.0,0.00019178,2]